[Event "Queen Rapid Challenge 2024"]
[Site "Bucharest"]
[Date "2024.03.10"]
[Round "2.5"]
[White "Rata, Anamaria"]
[Black "Cosma, Elena-Luminita"]
[Result "1-0"]
[ECO "C06"]
[WhiteElo "1790"]
[BlackElo "2238"]
[Annotator "TA"]
[PlyCount "131"]
[EventDate "2024.03.09"]
[EventType "rapid"]
[EventCountry "ROU"]
[SourceTitle "playchess.com"]
[Source "ChessBase"]
[SourceQuality "1"]
[TimeControl "900+10"]

{[%evp 15,131,37,45,46,59,27,68,57,68,49,43,34,43,32,23,27,35,6,70,31,62,23,79,55,73,62,103,104,109,50,59,55,158,0,0,-41,32,-18,-23,-31,-16,-50,-9,-18,83,-27,3,0,0,4,0,-14,0,0,12,-14,-18,-85,-6,-28,0,-56,0,-28,203,225,276,289,274,275,281,227,356,378,393,395,643,658,666,660,643,529,641,611,887,878,875,850,801,776,738,500,5325,4181,6647,6579,7257,10035,5185,10114,29980,29981,29981,29982,29985,29981,29981,29982,29982,29983,29983,29984,29984,29985,29986,29987,29987,29988]} 1. e4 {[%emt 0:00:12]} e6 {[%emt 0:00:11]} 2. d4 {[%emt 0:00:07]} d5 {[%emt 0:00:06]} 3. Nd2 {[%emt 0:00:07]} Nf6 {[%emt 0:00:16]} 4. e5 {[%emt 0:00:10]} Nfd7 {[%emt 0:00:06]} 5. Bd3 {[%emt 0:00:10]} c5 {[%emt 0:00:06]} 6. c3 {[%emt 0:00:06]} Nc6 {[%emt 0:00:07]} 7. Ne2 {[%emt 0:00:17]} a5 {[%emt 0:00:07]} 8. O-O {[%emt 0:00:26]} a4 {[%emt 0:00:07]} 9. Nf3 {[%emt 0:01:51]} a3 {[%emt 0:00:07]} 10. bxa3 {[%emt 0:02:48]} cxd4 {[%emt 0:00:54]} 11. cxd4 {[%emt 0:00:15] Weiß steht etwas besser.} Bxa3 {[%emt 0:00:08]} 12. Qb3 {[%emt 0:03:36]} Be7 {[%emt 0:00:31]} 13. Nc3 {[%emt 0:01:12]} O-O {[%emt 0:02:52]} 14. Qb1 {[%emt 0:02:18]} f5 {[%emt 0:00:20]} 15. exf6 {[%emt 0:00:21]} Nxf6 {[%emt 0:00:07]} 16. Bf4 {[%emt 0:01:21]} h6 {[%emt 0:05:21]} (16... Ne4 $11 17. Bxe4 Rxf4 18. Bxh7+ Kh8) 17. Bg3 {[%emt 0:01:58] Weiß steht aktiver.} (17. Nb5 $5) 17... Bd6 {[%emt 0:00:37]} 18. Re1 {[%emt 0:00:41]} Bxg3 {[%emt 0:02:53]} (18... Bb4 $11 {bleibt in der Remisbreite.} 19. Rc1 Nh5) 19. hxg3 $16 {[%emt 0:00:07]} Bd7 {[%emt 0:01:06]} 20. Ne2 {[%emt 0:00:19][%cal Oe2f4]} (20. Qxb7 $2 Rb8 21. Qa6 Nb4 $19) 20... Qc7 {[%emt 0:00:52]} 21. Nf4 {[%emt 0:00:09]} Qd6 {[%emt 0:00:23]} 22. Ng6 {[%emt 0:00:10] Verhindert Ra3} (22. Qxb7 $2 Rfb8 $19) (22. a4 $16) 22... Rfe8 $14 {[%emt 0:00:15]} 23. Nge5 {[%emt 0:00:10]} (23. Qxb7 $2 Reb8 $19) 23... Bc8 {[%emt 0:00:27]} (23... Ra4 $14) 24. Nh4 $2 {[%emt 0:00:12]} (24. a4 $16) 24... Nxd4 $11 {[%emt 0:00:15]} 25. Nhg6 {[%emt 0:00:10]} Nf5 {[%emt 0:00:19]} (25... Nc6 $15) 26. Nh4 {[%emt 0:00:11]} ({Besser ist} 26. g4 $14 Ne7 27. g5 hxg5 28. Qc1) 26... Nxh4 {[%emt 0:00:18]} 27. gxh4 {[%emt 0:00:06]} Rf8 {[%emt 0:00:13]} (27... Bd7 $5) 28. Re3 {[%emt 0:00:12]} d4 {[%emt 0:00:12]} 29. Re1 {[%emt 0:00:08]} Qd5 {[%emt 0:00:21]} (29... Ra5 $11 30. Nc4 Qc7) 30. Bg6 {[%emt 0:00:07]} ({Vorzuziehen ist} 30. Qb4 $16) 30... Ra5 {[%emt 0:00:13]} 31. Qd3 {[%emt 0:00:08]} (31. Qb4 {hält die Spannung aufrecht.} Rb5 32. Qe7 Qc5 33. Bf7+) 31... Qd8 {[%emt 0:00:10]} 32. Rac1 {[%emt 0:00:17]} Rd5 {[%emt 0:00:08]} 33. Rc4 {[%emt 0:00:11]} b5 {[%emt 0:00:07]} 34. Rcc1 {[%emt 0:00:08]} b4 {[%emt 0:00:06]} 35. Rb1 {[%emt 0:00:10][%mdl 1024] Weiss hat Kompensation.} Qd6 {[%emt 0:00:09]} 36. Nc4 {[%emt 0:00:10]} (36. Qg3 $11) 36... Qf4 {[%emt 0:00:11]} (36... Qc7 $17 {...Ba6 wäre nun fies.} 37. Qe2 (37. Rxb4 Rc5 $15) 37... Rc5) 37. g3 {[%emt 0:00:10]} Qb8 {[%emt 0:00:07]} 38. Be4 {[%emt 0:00:11]} (38. Qe2 $11) 38... Rdd8 {[%emt 0:00:08]} (38... Nxe4 $15 39. Qxe4 d3) 39. Bg2 {[%emt 0:00:10]} (39. Bf3 $5) 39... Kh8 $2 {[%emt 0:00:10] Führt Schwarz ins Verderben.} (39... Nd5 $11 {und Schwarz muss sich keine Sorgen machen.}) 40. Ne5 $18 {[%emt 0:00:08]} Qb6 {[%emt 0:00:13]} 41. Ng6+ {[%emt 0:00:08]} Kg8 {[%emt 0:00:06]} 42. Nxf8 {[%emt 0:00:08]} Rxf8 {[%emt 0:00:06]} 43. Bh3 {[%emt 0:00:09] Lässt Ng4 nicht zu} Qd6 {[%emt 0:00:09]} (43... Nd5 $142 44. a3 (44. Rbd1 Nc3 $18) 44... Kh8) 44. Qc4 {[%emt 0:00:09][%csl LRb4,LRe6]} Kh7 {[%emt 0:00:23]} 45. Rxb4 {[%emt 0:00:07]} ({Bloß nicht} 45. Bxe6 Bxe6 46. Rxe6 Qd7) (45. Qxb4 Rd8 46. Qxd6 Rxd6 $18) 45... e5 $2 {[%emt 0:00:09]} (45... d3 46. Rb3 (46. Bxe6 d2 $15) 46... d2) 46. Bxc8 {[%emt 0:00:09]} Rxc8 {[%emt 0:00:12]} 47. Qxc8 {[%emt 0:00:07]} Qxb4 {[%emt 0:00:06]} 48. Rxe5 {[%emt 0:00:11][%mdl 4096] Endspiel. KQR-KQN} Qb1+ {[%emt 0:00:12]} 49. Kg2 {[%emt 0:00:07]} Qxa2 {[%emt 0:00:10]} 50. Qf5+ {[%emt 0:00:07]} Kg8 {[%emt 0:00:07]} 51. Qe6+ {[%emt 0:00:27]} Qxe6 {[%emt 0:00:07]} 52. Rxe6 {[%emt 0:00:06] KR-KN} Kf7 {[%emt 0:00:16]} 53. Rd6 {[%emt 0:00:07]} h5 {[%emt 0:00:11]} (53... d3 $142 54. Rxd3 Ng4) 54. Rxd4 {[%emt 0:00:07]} g6 {[%emt 0:00:07]} 55. Kf3 {[%emt 0:00:12] [#] Droht Ke3 und aus.} Ke6 {[%emt 0:00:13]} 56. Kf4 {[%emt 0:00:10] Weiss droht Kg5 und Matt.} Nh7 {[%emt 0:00:29]} 57. Ra4 {[%emt 0:00:07] Weiss will mit Ra6+ Matt setzen.} Kf6 {[%emt 0:00:10]} 58. Ra6+ {[%emt 0:00:13] Weiß setzt Matt.} Kg7 {[%emt 0:00:06]} 59. Ra7+ {[%emt 0:00:09]} Kh6 {[%emt 0:00:05] [#]} 60. Rxh7+ $1 {[%emt 0:00:16]} Kxh7 {[%emt 0:00:06] K3P-KPP} 61. Kg5 {[%emt 0:00:09]} Kg7 {[%emt 0:00:06]} 62. f3 {[%emt 0:00:07][%cal Bf2f3,Bf3g4,Bg4g5][%mdl 32]} Kf7 {[%emt 0:00:09]} 63. Kh6 {[%emt 0:00:18]} Kf6 {[%emt 0:00:07]} 64. g4 {[%emt 0:00:10]} hxg4 {[%emt 0:00:07]} 65. fxg4 {[%emt 0:00:06]} Kf7 {[%emt 0:00:16]} 66. g5 {[%emt 0:00:10] Gewichteter Fehlerwert: Weiß=0.31/Schwarz=0.61.  Verlustzug:     	---       	Schwarz=1     Fehler:       	Weiß=6     	Schwarz=9     Ungenau:       	Weiß=8     	Schwarz=8     OK:         	Weiß=9     	Schwarz=8     Bester:       	Weiß=2     	Schwarz=2} 1-0

[Event "Queen Rapid Challenge 2024"]
[Site "Bucharest"]
[Date "2024.03.10"]
[Round "2.6"]
[White "Sandu, Mihaela"]
[Black "Batagan, Ilinca-Petra"]
[Result "1/2-1/2"]
[ECO "C71"]
[WhiteElo "2270"]
[BlackElo "1915"]
[Annotator "TA"]
[PlyCount "84"]
[EventDate "2024.03.09"]
[EventType "rapid"]
[EventCountry "ROU"]
[SourceTitle "playchess.com"]
[Source "ChessBase"]
[SourceQuality "1"]
[TimeControl "900+10"]

{[%evp 9,84,12,30,17,66,66,57,66,54,6,44,42,116,62,68,81,69,67,72,33,45,39,89,81,83,95,107,18,20,22,19,0,8,0,0,-10,0,0,98,85,92,79,190,69,60,42,183,31,45,45,122,48,68,69,98,93,158,64,61,62,62,40,100,80,106,60,280,256,233,150,141,-36,-27,-27,-37,-37,0]} 1. e4 {[%emt 0:00:14]} e5 {[%emt 0:00:15]} 2. Nf3 {[%emt 0:00:07]} Nc6 {[%emt 0:00:11]} 3. Bb5 {[%emt 0:00:07]} a6 {[%emt 0:00:13]} 4. Ba4 {[%emt 0:00:06]} d6 {[%emt 0:00:16]} 5. Nc3 {[%emt 0:00:38]} Bd7 {[%emt 0:01:40]} 6. O-O {[%emt 0:00:45]} g6 {[%emt 0:02:02]} (6... Nf6 $11 {should be considered.}) 7. d4 $14 {[%emt 0:00:30] Strongly threatening dxe5.} Bg7 {[%emt 0:01:07]} 8. dxe5 {[%emt 0:00:13] White is slightly better.} Nxe5 {[%emt 0:01:46]} 9. Bxd7+ {[%emt 0:01:53]} (9. Nxe5 $14 Bxe5 10. Bb3) 9... Qxd7 {[%emt 0:00:23]} 10. Nd5 {[%emt 0:02:09]} Nf6 {[%emt 0:01:46] [#]} (10... O-O-O $14) 11. Bh6 $1 {[%emt 0:00:22][%mdl 512]} Nxd5 {[%emt 0:03:42]} (11... Nxf3+ 12. Qxf3) 12. Bxg7 {[%emt 0:00:14]} Nxf3+ {[%emt 0:00:13]} 13. Qxf3 {[%emt 0:00:09]} Rg8 {[%emt 0:00:13]} 14. Bh6 {[%emt 0:04:01][%cal Bg7h6,Bh6g5,Bg5e3][%mdl 32]} Ne7 {[%emt 0:00:59]} 15. Bg5 {[%emt 0:02:22]} Qe6 {[%emt 0:00:21] [#]} (15... Nc6 $1 $14) 16. e5 $1 $16 {[%emt 0:00:14]} dxe5 {[%emt 0:00:32]} (16... O-O-O $2 17. exd6 Qxd6 18. Qxf7 $18) 17. Qxb7 {[%emt 0:00:32]} Rc8 {[%emt 0:00:16]} 18. Rfe1 {[%emt 0:00:16] White has more active pieces. The black rooks are passive.} (18. Qb3 $16) 18... f6 $11 {[%emt 0:00:17]} 19. Be3 {[%emt 0:00:14]} Kf7 {[%emt 0:00:10]} 20. b3 $36 {[%emt 0:00:19][%mdl 2048] White has some pressure.} Qc6 {[%emt 0:00:19]} 21. Qb4 {[%emt 0:00:13]} (21. Qxc6 {simplifies} Nxc6 22. Bc5 Rgd8 23. Re4) 21... Nd5 {[%emt 0:00:11]} 22. Qh4 {[%emt 0:00:20]} Nxe3 {[%emt 0:00:18]} (22... h5 {simplifies} 23. Qe4 Rcd8 24. Red1 Rge8) 23. Rxe3 {[%emt 0:00:07]} Qxc2 {[%emt 0:00:23]} (23... h5 $11 {remains equal.}) 24. Qxh7+ $16 {[%emt 0:00:38]} Rg7 {[%emt 0:00:06]} 25. Qh4 {[%emt 0:00:20]} Rd8 {[%emt 0:00:09]} (25... Rgg8 $16 {was necessary.}) 26. h3 {[%emt 0:00:09]} (26. Rxe5 $18 {aiming for Rae1.} g5 27. Qh5+ Qg6 28. Qf3) 26... Rd4 $14 {[%emt 0:00:11]} 27. Qg3 {[%emt 0:00:18]} Rg8 {[%emt 0:00:37]} (27... g5 $14) 28. Kh2 $2 {[%emt 0:00:17]} (28. Rc3 $18 Qe4 29. Rxc7+ Ke6 30. Rac1) 28... Qb2 {[%emt 0:00:20]} 29. Rae1 {[%emt 0:00:25]} Rf4 {[%emt 0:00:23]} (29... Qxa2 $14 30. Rf3 Qa5 (30... Kg7 $2 31. Rxf6 $18)) 30. Rf3 {[%emt 0:00:13]} ({Better is} 30. R1e2 $16 Qd4 31. Rd3) 30... Qd2 {[%emt 0:00:16]} 31. Ree3 {[%emt 0:00:34]} Rxf3 {[%emt 0:00:08]} 32. Qxf3 {[%emt 0:00:06][%mdl 4096] Endgame. KQR-KQR} Qd6 {[%emt 0:00:09]} (32... Re8 $142) 33. g3 {[%emt 0:00:14]} ({White should try} 33. Rd3 $16 Qe6 34. Rc3) 33... Rd8 {[%emt 0:00:11]} 34. Rc3 {[%emt 0:00:08]} c5 {[%emt 0:00:13]} 35. Rc4 {[%emt 0:00:19]} Qd5 {[%emt 0:00:08]} (35... Rd7 $14) 36. Qe3 $16 {[%emt 0:00:26]} Rc8 {[%emt 0:00:20]} 37. Rh4 {[%emt 0:00:08]} (37. Qe2 $16) 37... Qd1 $2 {[%emt 0:00:15]} (37... g5 $1 $14 38. Rc4 Rc6) 38. Rh7+ {[%emt 0:00:10]} Ke6 {[%emt 0:00:06]} 39. Qe4 {[%emt 0:00:08]} Qd4 {[%emt 0:00:17]} 40. Qb7 {[%emt 0:00:10]} (40. Qxg6 Qxf2+ 41. Kh1 Qf3+ (41... Qf1+ $2 42. Kh2 $19) 42. Kh2 (42. Kg1 Rd8 $15) 42... Rd8 $11) (40. Qe2 $16 Rd8 41. Ra7 (41. Qxa6+ Kf5 $16)) 40... Qxf2+ $15 {[%emt 0:00:07]} 41. Kh1 {[%emt 0:00:07][%csl Gh7][%cal Rb7d7]} Qf1+ {[%emt 0:00:06]} 42. Kh2 {[%emt 0:00:06][%csl Gh7][%cal Rb7d7]} Qf2+ {[%emt 0:00:15] Weighted Error Value: White=0.36/Black=0.40.  Loses game:     	---       	Black=1      Mistake:       	White=9     	Black=9      Inaccurate:     	White=2     	Black=4      OK:         	White=11    	Black=10     Best:        	White=4     	Black=4      Brilliant:      	White=1     	---} 1/2-1/2

[Event "Queen Rapid Challenge 2024"]
[Site "Bucharest"]
[Date "2024.03.10"]
[Round "2.7"]
[White "Cosman, Andreea-Marioara"]
[Black "Aldea, Maria-Antonia"]
[Result "1-0"]
[ECO "E43"]
[WhiteElo "2115"]
[BlackElo "1855"]
[Annotator "RC"]
[PlyCount "98"]
[EventDate "2024.03.09"]
[EventType "rapid"]
[EventCountry "ROU"]
[SourceTitle "playchess.com"]
[Source "ChessBase"]
[SourceQuality "1"]
[TimeControl "900+10"]

1. d4 {[%emt 0:00:13]} Nf6 {[%emt 0:00:12]} 2. c4 {[%emt 0:00:06]} e6 {[%emt 0:00:07]} 3. Nc3 {[%emt 0:00:07]} Bb4 {[%emt 0:15:21]} 4. e3 {[%emt 0:00:07]} b6 {[%emt 0:00:00]} 5. Nf3 {[%emt 0:00:24]} Bb7 {[%emt 0:00:00]} 6. Bd3 {[%emt 0:00:07]} Bxc3+ {[%emt 0:00:00]} 7. bxc3 {[%emt 0:15:16]} d6 8. O-O {[%emt 0:00:00]} Nbd7 {[%emt 0:00:00]} 9. Qe2 {[%emt 0:00:00]} O-O {[%emt 0:00:00]} 10. e4 {[%emt 0:00:00]} e5 {[%emt 0:00:00]} 11. Bg5 {[%emt 0:00:00]} Qe8 {[%emt 0:00:00]} 12. d5 {[%emt 0:00:00]} h6 {[%emt 0:00:00]} 13. Bd2 {[%emt 0:00:00]} Bc8 {[%emt 0:00:00]} 14. Nh4 {[%emt 0:00:00]} Nc5 {[%emt 0:00:00]} 15. Bc2 {[%emt 0:00:00]} Qe7 {[%emt 0:00:00]} 16. Nf5 {[%emt 0:00:00]} Bxf5 {[%emt 0:00:00]} 17. exf5 {[%emt 0:00:00]} Rae8 {[%emt 0:00:00]} 18. Rae1 {[%emt 0:00:00]} Qd7 {[%emt 0:00:00]} 19. Qf3 {[%emt 0:00:00]} e4 {[%emt 0:00:00]} 20. Qh3 {[%emt 0:00:00]} Kh7 {[%emt 0:01:04]} 21. g4 {[%emt 0:00:00]} Ng8 {[%emt 0:00:59]} 22. f3 {[%emt 0:00:00]} exf3 {[%emt 0:00:37]} 23. f6+ {[%emt 0:00:00]} g6 {[%emt 0:00:07]} 24. Qxf3 {[%emt 0:00:00]} Rxe1 {[%emt 0:00:33]} 25. Rxe1 {[%emt 0:00:00]} Re8 {[%emt 0:00:10]} 26. Bxg6+ {[%emt 0:00:00]} fxg6 {[%emt 0:00:10]} 27. Rxe8 {[%emt 0:00:00]} Qxe8 {[%emt 0:00:06]} 28. f7 {[%emt 0:00:00]} Qf8 {[%emt 0:00:13]} 29. fxg8=Q+ {[%emt 0:00:00]} Qxg8 {[%emt 0:00:14]} 30. Be3 {[%emt 0:01:40]} Qg7 {[%emt 0:00:10]} 31. Qf4 {[%emt 0:00:56]} Nd3 {[%emt 0:00:10]} 32. Qe4 {[%emt 0:00:27]} Ne5 {[%emt 0:00:08]} 33. h4 {[%emt 0:00:36]} Qd7 {[%emt 0:00:10]} 34. g5 {[%emt 0:00:24]} h5 {[%emt 0:00:10]} 35. Qf4 {[%emt 0:00:25]} Qg4+ {[%emt 0:00:10]} 36. Qxg4 {[%emt 0:00:12]} Nxg4 {[%emt 0:00:10]} 37. Bd4 {[%emt 0:00:06]} Ne5 {[%emt 0:00:05]} 38. Bxe5 dxe5 {[%emt 0:00:06]} 39. Kf2 {[%emt 0:00:19]} Kg7 {[%emt 0:00:07]} 40. Ke3 {[%emt 0:00:06]} Kf7 {[%emt 0:00:09]} 41. Ke4 {[%emt 0:00:06]} Ke7 {[%emt 0:00:06]} 42. Kxe5 {[%emt 0:00:07]} a6 {[%emt 0:00:06]} 43. a3 {[%emt 0:00:08]} a5 {[%emt 0:00:13]} 44. a4 {[%emt 0:00:06]} Kf7 {[%emt 0:00:06]} 45. d6 {[%emt 0:00:06]} cxd6+ {[%emt 0:00:06]} 46. Kxd6 {[%emt 0:00:06]} Kg7 {[%emt 0:00:08]} 47. Kc6 {[%emt 0:00:07]} Kf7 {[%emt 0:00:06]} 48. Kxb6 {[%emt 0:00:53]} Ke6 49. c5 {[%emt 0:00:00]} Kd7 {[%emt 0:01:01]} 1-0

[Event "Queen Rapid Challenge 2024"]
[Site "Bucharest"]
[Date "2024.03.10"]
[Round "2.8"]
[White "Iordache, Alexia-Andreea"]
[Black "Schiopu, Oana-Magdalena"]
[Result "1-0"]
[ECO "B90"]
[WhiteElo "1866"]
[BlackElo "1850"]
[Annotator "NA RC"]
[PlyCount "41"]
[EventDate "2024.03.09"]
[EventType "rapid"]
[EventCountry "ROU"]
[SourceTitle "playchess.com"]
[Source "ChessBase"]
[SourceQuality "1"]
[TimeControl "900+10"]

1. e4 {[%emt 0:00:13]} c5 {[%emt 0:00:12]} 2. Nf3 {[%emt 0:00:06]} d6 {[%emt 0:00:06]} 3. d4 {[%emt 0:00:06]} cxd4 {[%emt 0:00:06]} 4. Nxd4 {[%emt 0:00:06]} Nf6 {[%emt 0:00:07]} 5. Nc3 {[%emt 0:00:07]} a6 {[%emt 0:00:06]} 6. Be3 {[%emt 0:00:07]} e5 {[%emt 0:00:06]} 7. Nf3 {[%emt 0:00:06]} Nc6 {[%emt 0:00:09]} 8. Nd2 {[%emt 0:00:50]} Be7 {[%emt 0:00:27]} 9. Nc4 {[%emt 0:00:10]} Be6 {[%emt 0:00:38]} 10. Nb6 {[%emt 0:00:27]} Rb8 {[%emt 0:00:11]} 11. f3 {[%emt 0:01:19]} h5 {[%emt 0:00:28]} 12. Qd2 {[%emt 0:00:12]} Nd7 {[%emt 0:02:04]} 13. Ncd5 {[%emt 0:01:05]} Bxd5 {[%emt 0:00:58]} 14. Nxd5 {[%emt 0:00:13]} Nc5 {[%emt 0:00:43]} 15. O-O-O {[%emt 0:00:20]} b5 {[%emt 0:01:52]} 16. Nxe7 {[%emt 0:00:17]} Kxe7 {[%emt 0:00:07]} 17. Bxc5 {[%emt 0:01:32]} Nd4 {[%emt 0:01:12]} 18. Bxd4 {[%emt 0:00:08]} exd4 {[%emt 0:00:06]} 19. Qg5+ {[%emt 0:00:08]} f6 {[%emt 0:00:18]} 20. Qxg7+ {[%emt 0:00:07]} Ke6 {[%emt 0:00:06]} 21. g3 {[%emt 0:00:11]} 1-0

[Event "Queen Rapid Challenge 2024"]
[Site "Bucharest"]
[Date "2024.03.10"]
[Round "2.9"]
[White "Schiopu, Andreea-Alexandra"]
[Black "Ciolacu, Alessia-Mihaela"]
[Result "0-1"]
[ECO "D02"]
[WhiteElo "1830"]
[BlackElo "2175"]
[Annotator "RC"]
[PlyCount "62"]
[EventDate "2024.03.09"]
[EventType "rapid"]
[EventCountry "ROU"]
[SourceTitle "playchess.com"]
[Source "ChessBase"]
[SourceQuality "1"]
[TimeControl "900+10"]

1. Nf3 {[%emt 0:00:11]} c5 {[%emt 0:00:13]} 2. d4 {[%emt 0:00:10]} cxd4 {[%emt 0:00:08]} 3. Nxd4 {[%emt 0:00:08]} d5 {[%emt 0:00:10]} 4. g3 {[%emt 0:00:42]} e5 {[%emt 0:00:19]} 5. Nb3 {[%emt 0:00:28]} Nf6 {[%emt 0:00:19]} 6. Bg2 {[%emt 0:00:06]} Be6 {[%emt 0:00:59]} 7. O-O {[%emt 0:00:12]} Be7 {[%emt 0:00:09]} 8. Nc3 {[%emt 0:01:25]} h6 {[%emt 0:02:48]} 9. Qd3 {[%emt 0:01:14]} Nc6 {[%emt 0:00:43]} 10. Qb5 {[%emt 0:01:14]} O-O {[%emt 0:00:57]} 11. Qxb7 {[%emt 0:01:48]} Nb4 {[%emt 0:00:43]} 12. Rd1 {[%emt 0:01:47]} Nxc2 {[%emt 0:02:00]} 13. Rb1 {[%emt 0:00:07]} Nb4 {[%emt 0:02:53]} 14. a3 {[%emt 0:01:31]} Rb8 {[%emt 0:01:00]} 15. Qxa7 {[%emt 0:00:11]} Nc6 {[%emt 0:00:37]} 16. Qa4 {[%emt 0:00:58]} Bd7 {[%emt 0:00:09]} 17. Na1 {[%emt 0:02:27]} Nd4 {[%emt 0:00:36]} 18. Qa6 {[%emt 0:00:08]} Bf5 {[%emt 0:00:14]} 19. e4 {[%emt 0:01:39]} dxe4 {[%emt 0:01:08]} 20. Be3 {[%emt 0:00:32]} Qc7 {[%emt 0:00:45]} 21. Rbc1 {[%emt 0:00:39]} Rb6 {[%emt 0:01:27]} 22. Qa5 {[%emt 0:00:25]} Rc6 {[%emt 0:00:22]} 23. Qxc7 {[%emt 0:00:08]} Rxc7 {[%emt 0:00:09]} 24. Bxd4 {[%emt 0:00:23]} exd4 {[%emt 0:00:06]} 25. Rxd4 {[%emt 0:00:07]} Bc5 {[%emt 0:00:12]} 26. Rd2 {[%emt 0:00:13]} e3 {[%emt 0:00:09]} 27. Rdd1 {[%emt 0:00:34]} exf2+ {[%emt 0:00:12]} 28. Kh1 {[%emt 0:00:07]} Be3 {[%emt 0:00:13]} 29. Nd5 {[%emt 0:00:19]} Nxd5 {[%emt 0:00:10]} 30. Rxc7 {[%emt 0:00:10]} Nxc7 {[%emt 0:00:06]} 31. Nb3 {[%emt 0:00:08]} Bc2 {[%emt 0:00:08]} 0-1

[Event "Queen Rapid Challenge 2024"]
[Site "Bucharest"]
[Date "2024.03.10"]
[Round "2.10"]
[White "Pirvulescu, Ekaterina"]
[Black "Chicarosie, Ioana-Bianca"]
[Result "1-0"]
[ECO "C41"]
[WhiteElo "2091"]
[BlackElo "1820"]
[Annotator "NA RC"]
[PlyCount "77"]
[EventDate "2024.03.09"]
[EventType "rapid"]
[EventCountry "ROU"]
[SourceTitle "playchess.com"]
[Source "ChessBase"]
[SourceQuality "1"]
[TimeControl "900+10"]

1. e4 {[%emt 0:00:11]} d6 {[%emt 0:00:16]} 2. d4 {[%emt 0:00:07]} Nf6 {[%emt 0:00:07]} 3. Nc3 {[%emt 0:00:08]} Nbd7 {[%emt 0:00:06]} 4. Nf3 {[%emt 0:00:19]} e5 {[%emt 0:00:10]} 5. Bc4 {[%emt 0:00:11]} h6 {[%emt 0:00:10]} 6. O-O {[%emt 0:00:42]} Be7 {[%emt 0:00:09]} 7. a4 {[%emt 0:00:08]} O-O {[%emt 0:00:14]} 8. a5 {[%emt 0:00:12]} c6 {[%emt 0:00:16]} 9. Re1 {[%emt 0:01:45]} Nh7 {[%emt 0:00:29]} 10. Be3 {[%emt 0:01:23]} Ng5 {[%emt 0:00:36]} 11. Nxg5 {[%emt 0:00:40]} Bxg5 {[%emt 0:00:07]} 12. Qd2 {[%emt 0:00:21]} Bxe3 {[%emt 0:01:48]} 13. Rxe3 {[%emt 0:01:07]} Qe7 {[%emt 0:00:31]} 14. Rg3 {[%emt 0:00:18]} Kh8 {[%emt 0:00:10]} 15. Re1 {[%emt 0:00:56]} Nf6 {[%emt 0:00:23]} 16. Qd1 {[%emt 0:02:43]} exd4 {[%emt 0:01:53]} 17. Qxd4 {[%emt 0:00:32]} Qe5 {[%emt 0:03:52]} 18. Qxe5 {[%emt 0:01:54]} dxe5 {[%emt 0:00:06]} 19. Rd3 {[%emt 0:00:14]} b5 {[%emt 0:00:57]} 20. axb6 {[%emt 0:00:22]} axb6 {[%emt 0:00:06]} 21. Rd6 {[%emt 0:00:11]} Bb7 {[%emt 0:00:15]} 22. f3 {[%emt 0:01:31]} Kg8 {[%emt 0:00:43]} 23. Red1 {[%emt 0:00:08]} Rfc8 {[%emt 0:00:29]} 24. Kf2 {[%emt 0:00:37]} Kf8 {[%emt 0:00:07]} 25. g4 {[%emt 0:00:18]} Ke7 {[%emt 0:00:29]} 26. R6d2 {[%emt 0:00:58]} Ba6 {[%emt 0:00:30]} 27. Bb3 {[%emt 0:00:17]} Bb7 {[%emt 0:00:42]} 28. h4 {[%emt 0:00:07]} g5 {[%emt 0:00:06]} 29. h5 {[%emt 0:00:12]} b5 {[%emt 0:00:14]} 30. Ne2 {[%emt 0:00:52]} c5 {[%emt 0:00:40]} 31. Bd5 {[%emt 0:00:09]} Nxd5 {[%emt 0:00:22]} 32. exd5 {[%emt 0:00:06]} Rd8 {[%emt 0:00:18]} 33. Ng3 {[%emt 0:00:08]} Bc8 {[%emt 0:00:20]} 34. d6+ {[%emt 0:00:06]} Ke6 {[%emt 0:01:17]} 35. Ne4 {[%emt 0:00:25]} f5 {[%emt 0:01:23]} 36. Nxc5+ {[%emt 0:00:13]} Kf6 {[%emt 0:00:08]} 37. d7 {[%emt 0:00:07]} Ba6 {[%emt 0:00:23]} 38. Rd6+ {[%emt 0:00:07]} Ke7 {[%emt 0:00:13]} 39. gxf5 {[%emt 0:00:19]} 1-0